bitfinex-derivatives/quotes_BTCF0:USTF0_20260207
["timestamp","ask_amount","ask_price","bid_price","bid_amount"]
[1770447625359,0.014482,69089.0,69055.0,0.014489]
[1770447625561,0.14730308,69090.0,69059.0,0.014488]
[1770447625863,0.14730308,69090.0,69054.0,0.56823062]
[1770447625864,0.14730308,69090.0,69072.0,0.014485]
[1770447626055,0.14730308,69090.0,69050.0,0.01449]
[1770447626056,0.14730308,69090.0,69071.0,0.014486]
[1770447626364,0.14730308,69090.0,69075.0,0.014485]
[1770447626750,0.20408716,69103.0,69075.0,0.014485]
[1770447626956,0.014479,69106.0,69075.0,0.014485]
[1770447627665,0.014478,69108.0,69073.0,0.014485]
[1770447627864,0.0002,69096.0,69077.0,0.014484]
[1770447628071,0.0002,69099.0,69077.0,0.014484]
[1770447628458,0.0002,69099.0,69075.0,0.014485]
[1770447629160,0.0002,69101.0,69074.0,0.56823062]
[1770447629362,0.0002,69101.0,69080.0,0.014484]
[1770447629554,0.0002,69101.0,69075.0,0.014485]
[1770447629755,0.0002,69101.0,69083.0,0.014483]
[1770447630163,0.0002,69106.0,69082.0,0.014483]
[1770447630358,0.0002,69106.0,69086.0,0.014483]
[1770447631068,0.0002,69106.0,69078.0,0.014484]
[1770447631273,0.014478,69107.0,69077.0,0.56823062]
[1770447631464,0.0002,69110.0,69078.0,0.014484]
[1770447631664,0.014478,69109.0,69081.0,0.014483]
[1770447631863,0.14730308,69100.0,69061.0,0.56823062]
[1770447632064,0.14730308,69100.0,69043.0,0.07246]
[1770447632065,0.58162597,69089.0,69046.0,0.56823062]
[1770447632270,0.14730308,69071.0,69032.0,0.56823062]
[1770447632565,0.0002,69083.0,69068.0,0.014486]
[1770447632767,0.0002,69083.0,69072.0,0.014486]
[1770447632965,0.20724521,69112.0,69087.0,0.014482]
[1770447633166,0.20724521,69112.0,69048.0,0.014491]
[1770447633167,0.01448,69099.0,69070.0,0.56823062]
[1770447633570,0.01448,69097.0,69070.0,0.56823062]
[1770447633873,0.14730308,69090.0,69063.0,0.014487]
[1770447634371,0.0002,69064.0,69048.0,0.014491]
[1770447634575,0.0002,69054.0,69043.0,0.014491]
[1770447634864,0.20073491,69071.0,69035.0,0.014493]
[1770447635071,0.0002,69061.0,69020.0,0.56823062]
[1770447635273,0.0002,69061.0,69035.0,0.014493]
[1770447635464,0.014483,69086.0,69056.0,0.014489]
[1770447635667,0.014486,69072.0,69040.0,0.014492]
[1770447635963,0.014486,69070.0,69037.0,0.56823062]
[1770447636164,0.014486,69070.0,69023.0,0.5802823]
[1770447636165,0.14730308,69050.0,69023.0,0.5802823]
[1770447636365,0.014491,69045.0,69015.0,0.014497]
[1770447636762,0.55224638,69049.0,69008.0,0.5802823]
[1770447636968,0.55224638,69049.0,68996.0,0.00011592]
[1770447636969,0.55224638,69038.0,68996.0,0.58039822]
[1770447637272,0.0002,69032.0,69011.0,0.014498]
[1770447637478,0.20460372,69049.0,69010.0,0.5802823]
[1770447637665,0.55224638,69052.0,69013.0,0.014498]
[1770447637967,0.55224638,69052.0,69016.0,0.014497]
[1770447638172,0.14730308,69040.0,69016.0,0.014497]
[1770447638369,0.0002,69048.0,69013.0,0.014498]
[1770447638578,0.35352316,69060.0,69025.0,0.5802823]
[1770447638579,0.14730308,69060.0,69025.0,0.5802823]
[1770447638876,0.0002,69069.0,69048.0,0.014491]
[1770447639072,0.0002,69069.0,69044.0,0.014491]
[1770447639268,0.0002,69069.0,69033.0,0.5802823]
[1770447639465,0.20619834,69090.0,69019.0,0.014496]
[1770447639466,0.14730308,69060.0,69019.0,0.014496]
[1770447639775,0.014488,69059.0,69027.0,0.014495]
[1770447640072,0.55224638,69051.0,69010.0,0.014498]
[1770447640265,0.014493,69039.0,69006.0,0.014499]
[1770447640475,0.014493,69039.0,68982.0,0.014504]
[1770447640476,0.14730308,69040.0,69018.0,0.014497]
[1770447640771,0.75962383,69051.0,69026.0,0.014495]
[1770447640772,0.20164823,69041.0,69026.0,0.014495]
[1770447640976,0.0002,69050.0,69009.0,0.5802823]
[1770447641168,0.0002,69050.0,69040.0,0.014492]
[1770447641369,0.0002,69050.0,69020.0,0.5802823]
[1770447641566,0.55224638,69079.0,69030.0,0.5802823]
[1770447641872,0.14730308,69080.0,69058.0,0.014488]
[1770447642170,0.14730308,69080.0,69057.0,0.014489]
[1770447642171,0.0002,69079.0,69057.0,0.014489]
[1770447642470,0.0002,69079.0,69048.0,0.5802823]
[1770447642665,0.14730308,69070.0,69051.0,0.01449]
[1770447642974,0.22344077,69079.0,69058.0,0.014488]
[1770447642975,0.0002,69079.0,69058.0,0.014488]
[1770447643176,0.14730308,69090.0,69048.0,0.5802823]
[1770447643474,0.16178508,69090.0,69061.0,0.014488]
[1770447643664,0.014484,69080.0,69050.0,0.01449]
[1770447643869,0.014483,69084.0,69054.0,0.014489]
[1770447644265,0.014484,69079.0,69052.0,0.01449]
[1770447644674,0.0002,69085.0,69048.0,0.5802823]
[1770447644875,0.0002,69085.0,69064.0,0.014487]
[1770447645381,0.14730308,69090.0,69053.0,0.5802823]
[1770447645679,0.14730308,69090.0,69071.0,0.014486]
[1770447645882,0.14730308,69090.0,69074.0,0.014485]
[1770447646176,0.14730308,69090.0,69053.0,0.5802823]
[1770447646369,0.20337455,69111.0,69084.0,0.014483]
[1770447646567,0.55224638,69091.0,69043.0,0.5802823]
[1770447646782,0.55224638,69091.0,69045.0,0.5802823]
[1770447646970,0.0002,69087.0,69047.0,0.5802823]
[1770447647166,0.14730308,69100.0,69079.0,0.014484]
[1770447647479,0.14730308,69100.0,69062.0,0.5802823]
[1770447647671,0.14730308,69100.0,69026.0,0.34999823]
[1770447647672,0.0002,69108.0,69085.0,0.014483]
[1770447648180,0.0002,69108.0,69088.0,0.014482]
[1770447648777,0.014476,69117.0,69088.0,0.014482]
[1770447648975,0.014477,69114.0,69075.0,0.5802823]
[1770447649172,0.014478,69111.0,69075.0,0.5777653]
[1770447649476,0.14730308,69100.0,69071.0,0.014486]
[1770447649679,0.14730308,69100.0,69061.0,0.5802823]
[1770447649979,0.14730308,69100.0,69071.0,0.014486]
[1770447650175,0.014481,69093.0,69064.0,0.014487]
[1770447650879,0.01468,69097.0,69067.0,0.014486]
[1770447651376,0.0002,69097.0,69073.0,0.014485]
[1770447651580,0.0002,69097.0,69061.0,0.5802823]
[1770447651581,0.014481,69096.0,69069.0,0.014486]
[1770447651982,0.014481,69092.0,69064.0,0.014487]
[1770447652474,0.014481,69096.0,69067.0,0.014486]
[1770447652675,0.014481,69093.0,69067.0,0.014486]
[1770447652877,0.55244638,69099.0,69071.0,0.014486]
[1770447653074,0.0002,69092.0,69071.0,0.014486]
[1770447653276,0.14730308,69081.0,69058.0,0.014488]
[1770447653475,0.55244638,69092.0,69049.0,0.5802823]
[1770447653677,0.014482,69091.0,69049.0,0.5802823]
[1770447653874,0.014482,69091.0,69063.0,0.014487]
[1770447654078,0.20021181,69092.0,69055.0,0.5802823]
[1770447654280,0.20021181,69092.0,69064.0,0.014487]
[1770447654881,0.014482,69091.0,69064.0,0.014487]
[1770447655074,0.014483,69084.0,69055.0,0.5947713]
[1770447655281,0.014484,69081.0,69051.0,0.01449]
[1770447655481,0.14730308,69080.0,69055.0,0.014489]
[1770447655676,0.014488,69062.0,69029.0,0.5802823]
[1770447655882,0.014489,69055.0,69027.0,0.014495]
[1770447656077,0.14730308,69065.0,69037.0,0.014493]
[1770447656078,0.69954946,69065.0,69037.0,0.014493]
[1770447656276,0.072411,69090.0,69022.0,0.014496]
[1770447656277,0.16179308,69050.0,69022.0,0.014496]
[1770447656471,0.16179308,69050.0,68998.0,0.014501]
[1770447656472,0.014492,69044.0,69018.0,0.014497]
[1770447657081,0.014492,69044.0,69007.0,0.5547793]
[1770447657281,0.014495,69028.0,68999.0,0.014501]
[1770447657585,0.14730308,69050.0,69030.0,0.014494]
[1770447657785,0.14730308,69050.0,69015.0,0.5802823]
[1770447657980,0.14730308,69050.0,69032.0,0.014494]
[1770447658179,0.14730308,69050.0,69018.0,0.5802823]
[1770447658180,0.014487,69063.0,69018.0,0.5802823]
[1770447658377,0.14730308,69070.0,69042.0,0.014492]
[1770447658585,0.14730308,69070.0,69031.0,0.5802823]
[1770447658586,0.14730308,69070.0,69045.0,0.014491]
[1770447658979,0.14730308,69070.0,69041.0,0.014492]
[1770447659182,0.0002,69082.0,69043.0,0.5802823]
[1770447659488,0.20001181,69092.0,69002.0,0.2545]
[1770447659489,0.014485,69074.0,69044.0,0.014491]
[1770447659690,0.014487,69066.0,69038.0,0.014493]
[1770447659889,0.014487,69066.0,69037.0,0.014493]
[1770447660190,0.20026952,69082.0,69056.0,0.014489]
[1770447660383,0.55224638,69087.0,69060.0,0.014488]
[1770447660584,0.14730308,69090.0,69028.0,0.014495]
[1770447660585,0.014485,69074.0,69034.0,0.5802823]
[1770447660779,0.55224638,69082.0,69048.0,0.01449]
[1770447660985,0.55224638,69082.0,69038.0,0.5802823]
[1770447661188,0.014488,69062.0,69030.0,0.014494]
[1770447661385,0.69954946,69070.0,69019.0,0.5802823]
[1770447661386,0.014489,69056.0,69025.0,0.014495]
[1770447661584,0.14730308,69050.0,69029.0,0.014494]
[1770447661785,0.0002,69069.0,69025.0,0.072479]
[1770447661984,0.0002,69069.0,69049.0,0.01449]
[1770447662280,0.0002,69069.0,69053.0,0.014489]
[1770447662483,0.0002,69069.0,69036.0,0.5802823]
[1770447662484,0.014682,69090.0,69062.0,0.014488]
[1770447662683,0.0002,69085.0,69062.0,0.014488]
[1770447662892,0.0002,69085.0,69072.0,0.014485]
[1770447663082,0.014483,69084.0,69054.0,0.014489]
[1770447663283,0.0002,69085.0,69043.0,0.5802823]
[1770447663483,0.0002,69085.0,69048.0,0.5802823]
[1770447663989,0.55224638,69095.0,69010.0,0.14730308]
[1770447663990,0.0002,69100.0,69060.0,0.5802823]
[1770447664185,0.0002,69100.0,69066.0,0.014487]
[1770447664386,0.20244513,69100.0,69076.0,0.014485]
[1770447664591,0.0002,69100.0,69076.0,0.014485]
[1770447664787,0.0002,69100.0,69069.0,0.5802823]
[1770447665093,0.20846679,69105.0,69060.0,0.072442]
[1770447665094,0.014478,69106.0,69079.0,0.014484]
[1770447665282,0.14750308,69110.0,69082.0,0.014483]
[1770447665488,0.14750308,69110.0,69086.0,0.014483]
[1770447665790,0.14750308,69110.0,69090.0,0.014482]
[1770447665993,0.0002,69105.0,69093.0,0.014481]
[1770447666588,0.014476,69119.0,69093.0,0.014481]
[1770447666896,0.14730308,69130.0,69105.0,0.57900911]
[1770447667097,0.014475,69122.0,69093.0,0.014481]
[1770447667299,0.0002,69114.0,69094.0,0.57900911]
[1770447667497,0.014474,69128.0,69098.0,0.01448]
[1770447667690,0.0002,69123.0,69096.0,0.57900911]
[1770447667998,0.0002,69123.0,69104.0,0.014479]
[1770447668303,0.0002,69123.0,69100.0,0.01448]
[1770447668604,0.14730308,69130.0,69100.0,0.01448]
[1770447668803,0.014474,69127.0,69096.0,0.01448]
[1770447669101,0.014474,69127.0,69092.0,0.57900911]
[1770447669102,0.014474,69129.0,69095.0,0.014481]
[1770447669396,0.14730308,69130.0,69103.0,0.014479]
[1770447669597,0.0002,69120.0,69103.0,0.014479]
[1770447669797,0.0002,69120.0,69096.0,0.01448]
[1770447669997,0.14730308,69150.0,69095.0,0.57971222]
[1770447670189,0.014468,69155.0,69121.0,0.014475]
[1770447670601,0.54458292,69176.0,69134.0,0.57971222]
[1770447670801,0.0002,69157.0,69135.0,0.014472]
[1770447671001,0.0002,69159.0,69135.0,0.014472]
[1770447671402,0.0002,69159.0,69134.0,0.57971222]
[1770447671794,0.014667,69159.0,69121.0,0.57718722]
[1770447671995,0.01447,69146.0,69108.0,0.59419022]
[1770447672304,0.55905392,69143.0,69108.0,0.59419022]
[1770447672498,0.54458292,69143.0,69112.0,0.014477]
[1770447672702,0.54458292,69143.0,69116.0,0.014476]
[1770447672905,0.54458292,69143.0,69108.0,0.57971222]
[1770447673107,0.54458292,69143.0,69114.0,0.014477]
[1770447673405,0.19967668,69146.0,69108.0,0.57971222]
[1770447673605,0.0002,69144.0,69112.0,0.014477]
[1770447673904,0.0002,69144.0,69072.0,0.28749986]
[1770447673905,0.14730308,69130.0,69102.0,0.014479]
[1770447674107,0.54478292,69144.0,69110.0,0.014478]
[1770447674108,0.014471,69143.0,69110.0,0.014478]
[1770447674295,0.0002,69137.0,69105.0,0.57971222]
[1770447674606,0.0002,69137.0,69120.0,0.014475]
[1770447674802,0.0002,69137.0,69116.0,0.57971222]
[1770447675203,0.0002,69137.0,69111.0,0.014477]
[1770447675499,0.20332821,69142.0,69103.0,0.57971222]
[1770447675500,0.20332821,69142.0,69114.0,0.014477]
[1770447675702,0.0002,69144.0,69114.0,0.014477]
[1770447676507,0.01447,69148.0,69118.0,0.014476]
[1770447676803,0.0002,69149.0,69122.0,0.014475]
[1770447677002,0.0002,69149.0,69126.0,0.014474]
[1770447677205,0.0002,69149.0,69134.0,0.014473]
[1770447677407,0.0002,69154.0,69130.0,0.57971222]
[1770447677710,0.0002,69157.0,69137.0,0.014472]
[1770447677908,0.54478292,69157.0,69121.0,0.014475]
[1770447678105,0.16124319,69150.0,69119.0,0.57971222]
[1770447678300,0.14677419,69150.0,69124.0,0.014474]
[1770447678509,0.20862233,69157.0,69119.0,0.57971222]
[1770447678810,0.20862233,69157.0,69125.0,0.57971222]
[1770447678811,0.0002,69152.0,69125.0,0.57971222]
[1770447679312,0.0002,69152.0,69133.0,0.014473]
[1770447679908,0.0002,69155.0,69133.0,0.006473]
[1770447680209,0.0002,69159.0,69137.0,0.57971222]
[1770447680397,0.014464,69176.0,69144.0,0.01447]
[1770447680603,0.0002,69160.0,69144.0,0.01447]
[1770447680910,0.014464,69178.0,69147.0,0.01447]
[1770447681110,0.014462,69184.0,69154.0,0.014468]
[1770447681310,0.014462,69184.0,69152.0,0.59418122]
[1770447681606,0.0002,69178.0,69152.0,0.57971222]
[1770447681803,0.0002,69175.0,69152.0,0.57971222]
[1770447682603,0.014464,69174.0,69140.0,0.57971222]
[1770447682805,0.014464,69174.0,69145.0,0.01447]
[1770447683004,0.014464,69174.0,69140.0,0.57971222]
[1770447683005,0.014468,69157.0,69130.0,0.014473]
[1770447683207,0.014468,69157.0,69125.0,0.014474]
[1770447683411,0.014468,69154.0,69125.0,0.014474]
[1770447683609,0.014468,69158.0,69128.0,0.014474]
[1770447683910,0.0002,69162.0,69117.0,0.57971222]
[1770447683911,0.01447,69147.0,69117.0,0.57971222]
[1770447684111,0.14677419,69150.0,69118.0,0.014476]
[1770447684313,0.16124319,69150.0,69122.0,0.014475]
[1770447684507,0.01447,69147.0,69118.0,0.014476]
[1770447685015,0.20330841,69150.0,69124.0,0.014474]
[1770447685309,0.14677419,69134.0,69108.0,0.57971222]
[1770447685508,0.0002,69128.0,69108.0,0.57971222]
[1770447685812,0.0002,69128.0,69113.0,0.014477]
[1770447686506,0.1998341,69134.0,69112.0,0.014477]
[1770447686715,0.0002,69139.0,69116.0,0.014476]
[1770447687106,0.0002,69139.0,69108.0,0.57971222]
[1770447687307,0.014472,69136.0,69109.0,0.014478]
[1770447687504,0.0002,69139.0,69094.0,0.57971222]
[1770447687505,0.54458292,69129.0,69094.0,0.57971222]
[1770447687909,0.54458292,69129.0,69084.0,0.014483]
[1770447688112,0.014477,69112.0,69084.0,0.014483]
[1770447688500,0.014477,69112.0,69082.0,0.57971222]
[1770447688501,0.54458292,69129.0,69082.0,0.57971222]
[1770447688704,0.014477,69114.0,69086.0,0.014482]
[1770447688904,0.014476,69118.0,69091.0,0.014481]
[1770447689405,0.014476,69120.0,69090.0,0.014482]
[1770447689607,0.014475,69124.0,69093.0,0.014481]
[1770447690416,0.0002,69126.0,69112.0,0.014477]
[1770447690711,0.0002,69140.0,69119.0,0.014476]
[1770447691012,0.0002,69140.0,69108.0,0.57971222]
[1770447691216,0.14697419,69150.0,69117.0,0.014476]
[1770447691510,0.01447,69145.0,69117.0,0.014476]
[1770447691902,0.54458292,69149.0,69112.0,0.014477]
[1770447692107,0.014471,69141.0,69101.0,0.57971222]
[1770447692303,0.54458292,69140.0,69101.0,0.57971222]
[1770447692608,0.14677419,69130.0,69110.0,0.014478]
[1770447692808,0.014473,69132.0,69102.0,0.59419122]
[1770447693015,0.014473,69132.0,69105.0,0.014478]
[1770447693212,0.54458292,69136.0,69112.0,0.014477]
[1770447693409,0.54458292,69136.0,69102.0,0.57971222]
[1770447693410,0.0002,69131.0,69118.0,0.014476]
[1770447693613,0.0002,69131.0,69105.0,0.57971222]
[1770447693909,0.0002,69131.0,69112.0,0.57971222]
[1770447694115,0.0002,69131.0,69118.0,0.014476]
[1770447694410,0.0002,69145.0,69112.0,0.57971222]
[1770447694614,0.20162537,69150.0,69116.0,0.57971222]
[1770447694812,0.0002,69155.0,69129.0,0.014474]
[1770447695011,0.014468,69154.0,69127.0,0.57971222]
[1770447695209,0.0002,69155.0,69128.0,0.014474]
[1770447695409,0.0002,69155.0,69127.0,0.014474]
[1770447695806,0.20638732,69158.0,69133.0,0.014473]
[1770447696009,0.0002,69161.0,69124.0,0.55984965]
[1770447696411,0.0002,69161.0,69142.0,0.014471]
[1770447696714,0.0002,69161.0,69141.0,0.014471]
[1770447696912,0.20518,69163.0,69136.0,0.55984965]
[1770447697217,0.20299588,69176.0,69129.0,0.55984965]
[1770447697414,0.014461,69189.0,69129.0,0.55984965]
[1770447697415,0.54761367,69164.0,69129.0,0.55984965]
[1770447697618,0.54761367,69149.0,69105.0,0.55984965]
[1770447697914,0.54761367,69144.0,69105.0,0.57432865]
[1770447698126,0.014475,69124.0,69098.0,0.01448]
[1770447698423,0.014474,69127.0,69088.0,0.55984965]
[1770447698616,0.54761367,69129.0,69090.0,0.014482]
[1770447698814,0.14677419,69110.0,69081.0,0.014484]
[1770447699014,0.14677419,69110.0,69084.0,0.014483]
[1770447699220,0.014479,69104.0,69075.0,0.014485]
[1770447699413,0.014484,69080.0,69051.0,0.01449]
[1770447699709,0.54761367,69080.0,69034.0,0.55984965]
[1770447699911,0.014488,69061.0,69024.0,0.014495]
[1770447700219,0.54761367,69065.0,69026.0,0.55984965]
[1770447700417,0.0002,69062.0,69033.0,0.014494]
[1770447700721,0.0002,69062.0,69041.0,0.014492]
[1770447700922,0.0002,69062.0,69045.0,0.014491]
[1770447701125,0.0002,69062.0,69025.0,0.014495]
[1770447701126,0.0002,69062.0,69049.0,0.01449]
[1770447701319,0.14677419,69090.0,69062.0,0.014488]
[1770447701520,0.54761367,69089.0,69040.0,0.55984965]
[1770447701720,0.14677419,69090.0,69055.0,0.55984965]
[1770447701922,0.21708014,69094.0,69066.0,0.014487]
[1770447701923,0.20259914,69094.0,69066.0,0.014487]
[1770447702217,0.54761367,69100.0,69068.0,0.014486]
[1770447702418,0.01448,69097.0,69062.0,0.014488]
[1770447702618,0.014482,69089.0,69055.0,0.55984965]
[1770447702815,0.14677419,69090.0,69060.0,0.014488]
[1770447703022,0.14677419,69090.0,69065.0,0.014487]
[1770447703215,0.14677419,69090.0,69060.0,0.014488]
[1770447703609,0.35170615,69090.0,69060.0,0.014488]
[1770447703821,0.014482,69089.0,69055.0,0.57433865]
[1770447704117,0.35170615,69090.0,69019.0,0.55984965]
[1770447704118,0.54761367,69077.0,69019.0,0.55984965]
[1770447704325,0.014488,69059.0,69024.0,0.014495]
[1770447704516,0.54761367,69064.0,69024.0,0.014495]
[1770447704924,0.54761367,69056.0,69013.0,0.014498]
[1770447705127,0.54761367,69049.0,69008.0,0.014499]
[1770447705623,0.56210567,69042.0,69003.0,0.0145]
[1770447705826,0.014493,69038.0,69003.0,0.0145]
[1770447706025,0.14677419,69050.0,68997.0,0.014501]
[1770447706026,0.56210767,69034.0,68997.0,0.014501]
[1770447706320,0.14677419,69030.0,68992.0,0.014502]
[1770447706518,0.14677419,69030.0,68990.0,0.014503]
[1770447706519,0.014495,69026.0,68990.0,0.014503]
[1770447707122,0.54761367,69009.0,68975.0,0.014506]
[1770447707322,0.56211267,69009.0,68969.0,0.014507]
[1770447707624,0.014496,69024.0,68985.0,0.014504]
[1770447707819,0.75038074,69026.0,68976.0,0.55984965]
[1770447708021,0.2037938,69038.0,68986.0,0.55984965]
[1770447708218,0.14677419,69050.0,68967.0,0.014507]
[1770447708219,0.56210367,69049.0,69007.0,0.55984965]
[1770447708419,0.56210367,69049.0,69009.0,0.014499]
[1770447708618,0.56210367,69049.0,69007.0,0.55984965]
[1770447708619,0.54761367,69049.0,69019.0,0.014497]
[1770447708821,0.54761367,69049.0,69012.0,0.014498]
[1770447709017,0.56210467,69048.0,69008.0,0.014499]
[1770447709323,0.20506739,69052.0,68977.0,0.56436]
[1770447709324,0.56210667,69037.0,68994.0,0.55984965]
[1770447709514,0.54761367,69037.0,68994.0,0.55984965]
[1770447709925,0.56210467,69047.0,68997.0,0.55984965]
[1770447710227,0.54761367,69047.0,69007.0,0.014499]
[1770447710530,0.14677419,69060.0,69027.0,0.014495]
[1770447710727,0.14677419,69060.0,69021.0,0.57434565]
[1770447710923,0.14677419,69060.0,69022.0,0.014496]
[1770447711117,0.54761367,69075.0,69043.0,0.014492]
[1770447711319,0.54761367,69075.0,69037.0,0.014493]
[1770447711521,0.54761367,69075.0,69031.0,0.014494]
[1770447711522,0.14677419,69060.0,69031.0,0.014494]
[1770447711719,0.69438786,69041.0,69011.0,0.014498]
[1770447711917,0.54761367,69040.0,69005.0,0.0145]
[1770447712120,0.14677419,69041.0,68990.0,0.014503]
[1770447712121,0.14677419,69020.0,68990.0,0.014503]
[1770447712419,0.14677419,69020.0,68982.0,0.55984965]
[1770447712619,0.54761367,69019.0,68982.0,0.55984965]
[1770447712815,0.54761367,69017.0,68967.0,0.55984965]
[1770447713016,0.54761367,69015.0,68978.0,0.014505]
[1770447713226,0.54761367,69013.0,68978.0,0.014505]
[1770447713424,0.54761367,69010.0,68978.0,0.014505]
[1770447713623,0.35117161,69020.0,68943.0,0.55984965]
[1770447713624,0.54761367,68998.0,68943.0,0.55984965]
[1770447713822,0.54761367,68988.0,68943.0,0.55984965]
[1770447714020,0.54761367,68988.0,68945.0,0.55984965]
[1770447714316,0.54761367,68983.0,68953.0,0.01451]
[1770447714521,0.56211867,68978.0,68946.0,0.014512]
[1770447714720,0.54761367,68977.0,68946.0,0.014512]
[1770447714920,0.54761367,68975.0,68940.0,0.014513]
[1770447715129,0.54761367,68966.0,68928.0,0.014516]
[1770447715326,0.20166867,68975.0,68950.0,0.014511]
[1770447715528,0.69438786,68980.0,68927.0,0.072582]
[1770447715529,0.54761367,68980.0,68937.0,0.55984965]
[1770447715824,0.75463055,68980.0,68950.0,0.014511]
[1770447716030,0.54761367,68979.0,68950.0,0.014511]
[1770447716329,0.54761367,68978.0,68950.0,0.014511]
[1770447716729,0.20707859,68988.0,68942.0,0.55984965]
[1770447717030,0.20707859,68988.0,68941.0,0.072567]
[1770447717031,0.14677419,68990.0,68962.0,0.014509]
[1770447717330,0.56211767,68983.0,68931.0,0.55984965]
[1770447717531,0.54761367,68979.0,68948.0,0.014511]
[1770447717730,0.014503,68989.0,68943.0,0.55984965]
[1770447717929,0.20711973,68990.0,68967.0,0.014507]
[1770447718232,0.54761367,68993.0,68967.0,0.014507]
[1770447718426,0.54761367,69006.0,68974.0,0.014506]
[1770447718631,0.0145,69005.0,68960.0,0.55984965]
[1770447718929,0.0145,69005.0,68973.0,0.014506]
[1770447719230,0.2214316,69016.0,68981.0,0.014505]
[1770447719437,0.75201109,69020.0,68973.0,0.55984965]
[1770447719438,0.014499,69008.0,68973.0,0.55984965]
[1770447719622,0.014501,68999.0,68960.0,0.55984965]
[1770447719823,0.54761367,69003.0,68967.0,0.014507]
[1770447720032,0.54761367,69001.0,68967.0,0.014507]
[1770447720234,0.54761367,69001.0,68960.0,0.55984965]
[1770447720235,0.54761367,69001.0,68976.0,0.014506]
[1770447720427,0.54761367,69001.0,68971.0,0.014507]
[1770447720622,0.54761367,69001.0,68975.0,0.014506]
[1770447720826,0.16127319,69010.0,68979.0,0.014505]
[1770447721031,0.16127319,69010.0,68960.0,0.55984965]
[1770447721032,0.16127319,69010.0,68977.0,0.014505]
[1770447721229,0.69438786,69010.0,68980.0,0.014505]
[1770447721431,0.69438786,69010.0,68949.0,0.014511]
[1770447721432,0.21076185,69017.0,68986.0,0.014504]
[1770447721733,0.072464,69040.0,68986.0,0.014504]
[1770447721734,0.54761367,69039.0,69006.0,0.014499]
[1770447722030,0.54761367,69039.0,68993.0,0.072512]
[1770447722233,0.54761367,69039.0,69002.0,0.0145]
[1770447722435,0.014494,69034.0,69000.0,0.014501]
[1770447722634,0.014494,69030.0,69000.0,0.014501]
[1770447722836,0.014493,69035.0,68999.0,0.014501]
[1770447723026,0.014493,69035.0,69003.0,0.0145]
[1770447723222,0.54761367,69039.0,69007.0,0.014499]
[1770447723429,0.54761367,69039.0,69003.0,0.0145]
[1770447723836,0.014493,69038.0,69007.0,0.014499]
[1770447724027,0.20748002,69041.0,69009.0,0.014499]
[1770447724226,0.56210267,69054.0,69010.0,0.55984965]
[1770447724531,0.54761367,69068.0,69030.0,0.55984965]
[1770447725031,0.014484,69081.0,69028.0,0.014495]
[1770447725232,0.54761367,69082.0,69034.0,0.55984965]
[1770447725529,0.0002,69101.0,69053.0,0.55984965]
[1770447725530,0.54761367,69096.0,69053.0,0.55984965]
[1770447725729,0.0002,69101.0,69076.0,0.014485]
[1770447725924,0.0002,69101.0,69059.0,0.58021758]
[1770447726136,0.53270188,69113.0,69089.0,0.014482]
[1770447726333,0.53270188,69109.0,69057.0,0.58021758]
[1770447726634,0.53270188,69103.0,69066.0,0.014487]
[1770447726832,0.53270188,69103.0,69060.0,0.014488]
[1770447726833,0.01448,69099.0,69060.0,0.014488]
[1770447727136,0.014482,69089.0,69057.0,0.54021758]
[1770447727436,0.54718388,69089.0,69048.0,0.01449]
[1770447727631,0.014484,69081.0,69047.0,0.014491]
[1770447727831,0.014484,69079.0,69042.0,0.58021758]
[1770447728236,0.53270188,69054.0,69015.0,0.014497]
[1770447728434,0.54719288,69047.0,69009.0,0.014499]
[1770447728731,0.53270188,69060.0,69025.0,0.014495]
[1770447728931,0.14677419,69050.0,69007.0,0.58021758]
[1770447729137,0.54719288,69048.0,69008.0,0.014499]
[1770447729331,0.014492,69044.0,69008.0,0.014499]
[1770447729531,0.53270188,69048.0,69013.0,0.014498]
[1770447729838,0.53270188,69048.0,68989.0,0.00012245]
[1770447729839,0.55895257,69043.0,68993.0,0.53817643]
[1770447730438,0.00012922,69042.0,68993.0,0.53817643]
[1770447730647,0.55895257,69043.0,68993.0,0.53817643]
[1770447730836,0.014488,69060.0,69015.0,0.53817643]
[1770447731040,0.014491,69047.0,69015.0,0.53817643]
[1770447731235,0.014491,69047.0,69012.0,0.014498]
[1770447731436,0.014491,69049.0,69012.0,0.014498]
[1770447731943,0.014491,69049.0,69016.0,0.014497]
[1770447732439,0.14677419,69050.0,69001.0,0.53817643]
[1770447732440,0.014493,69038.0,69001.0,0.55267643]
[1770447732647,0.014494,69030.0,68996.0,0.014501]
[1770447732844,0.55895557,69026.0,68987.0,0.53817643]
[1770447733044,0.014496,69024.0,68988.0,0.014503]
[1770447733547,0.014496,69022.0,68988.0,0.014503]
[1770447733845,0.75141366,69038.0,68997.0,0.014501]
[1770447734040,0.54446057,69038.0,68989.0,0.53817643]
[1770447734246,0.014494,69030.0,68989.0,0.53817643]
[1770447734438,0.55895457,69031.0,68989.0,0.53817643]
[1770447734633,0.21006366,69044.0,68989.0,0.53817643]
[1770447734841,0.014492,69044.0,69009.0,0.014499]
[1770447735049,0.55895157,69045.0,69008.0,0.014499]
[1770447735251,0.54446057,69045.0,69016.0,0.014497]
[1770447735542,0.014492,69044.0,69011.0,0.014498]
[1770447735742,0.01449,69053.0,69018.0,0.014497]
[1770447735945,0.014489,69054.0,69022.0,0.014496]
[1770447736547,0.55894857,69059.0,69026.0,0.014495]
[1770447736751,0.014488,69059.0,69026.0,0.014495]
[1770447736948,0.54446057,69058.0,69013.0,0.55267443]
[1770447737246,0.014491,69044.0,68999.0,0.53817643]
[1770447737442,0.014493,69036.0,69002.0,0.0145]
[1770447738151,0.014492,69041.0,69006.0,0.014499]
[1770447738351,0.014493,69039.0,69006.0,0.014499]
[1770447738745,0.014493,69037.0,69006.0,0.014499]
[1770447739954,0.014492,69040.0,68999.0,0.52267543]
[1770447740147,0.54446057,69026.0,68992.0,0.014502]
[1770447740346,0.54446057,69026.0,69000.0,0.014501]
[1770447740542,0.54446057,69026.0,68984.0,0.53817643]
[1770447740845,0.54446057,69024.0,68984.0,0.53817643]
[1770447741052,0.014497,69018.0,68987.0,0.014503]